[Event "Titled Tuesday Blitz September 13 Late 2022"]
[White "Zhigalko, Sergei"]
[Black "Timmermans, Mark"]
[WhiteFideId "13502956"]
[BlackFideId "1026399"]
[WhiteElo "2662"]
[BlackElo "2460"]
[Result "1/2-1/2"]
[Round "06"]
[TimeControl "180+1"]
[Date "2022.09.13"]
[WhiteClock "0:00:25"]
[BlackClock "0:01:01"]

1. e4 {[%clk 0:03:00]}  e5 {[%clk 0:02:58]} 2. Nf3 {[%clk 0:03:01]}  Nc6 {[%clk 0:02:58]} 3. Bc4 {[%clk 0:03:00]}  Nf6 {[%clk 0:02:58]} 4. d3 {[%clk 0:03:00]}  Be7 {[%clk 0:02:58]} 5. O-O {[%clk 0:03:00]}  O-O {[%clk 0:02:59]} 6. Nbd2 {[%clk 0:03:00]}  d6 {[%clk 0:02:58]} 7. c3 {[%clk 0:03:00]}  Na5 {[%clk 0:02:53]} 8. Bb5 {[%clk 0:02:59]}  a6 {[%clk 0:02:53]} 9. Ba4 {[%clk 0:02:59]}  b5 {[%clk 0:02:54]} 10. Bc2 {[%clk 0:02:59]}  c5 {[%clk 0:02:54]} 11. Re1 {[%clk 0:02:59]}  Bb7 {[%clk 0:02:53]} 12. Nf1 {[%clk 0:02:58]}  Nc6 {[%clk 0:02:53]} 13. Ng3 {[%clk 0:02:53]}  Re8 {[%clk 0:02:52]} 14. Bb3 {[%clk 0:02:50]}  Na5 {[%clk 0:02:51]} 15. Bc2 {[%clk 0:02:50]}  Bf8 {[%clk 0:02:47]} 16. Qe2 {[%clk 0:02:42]}  d5 {[%clk 0:02:42]} 17. h3 {[%clk 0:02:35]}  c4 {[%clk 0:02:36]} 18. Bd2 {[%clk 0:01:26]}  cxd3 {[%clk 0:02:32]} 19. Bxd3 {[%clk 0:01:26]}  dxe4 {[%clk 0:02:30]} 20. Nxe4 {[%clk 0:01:24]}  Nxe4 {[%clk 0:02:31]} 21. Bxe4 {[%clk 0:01:25]}  Bxe4 {[%clk 0:02:32]} 22. Qxe4 {[%clk 0:01:25]}  Nc4 {[%clk 0:02:31]} 23. Bg5 {[%clk 0:01:19]}  f6 {[%clk 0:02:29]} 24. b3 {[%clk 0:01:06]}  Nd6 {[%clk 0:02:25]} 25. Qd5+ {[%clk 0:01:06]}  Nf7 {[%clk 0:02:26]} 26. Qxd8 {[%clk 0:01:06]}  Rexd8 {[%clk 0:02:27]} 27. Be3 {[%clk 0:01:02]}  Rac8 {[%clk 0:02:26]} 28. Rac1 {[%clk 0:01:02]}  Ba3 {[%clk 0:02:25]} 29. Rc2 {[%clk 0:01:02]}  Rd3 {[%clk 0:02:25]} 30. c4 {[%clk 0:00:52]}  bxc4 {[%clk 0:02:23]} 31. bxc4 {[%clk 0:00:53]}  Rd7 {[%clk 0:01:58]} 32. Rb1 {[%clk 0:00:43]}  Rdc7 {[%clk 0:01:55]} 33. c5 {[%clk 0:00:23]}  Nd8 {[%clk 0:01:38]} 34. Rb6 {[%clk 0:00:21]}  Bxc5 {[%clk 0:01:36]} 35. Bxc5 {[%clk 0:00:18]}  Rxc5 {[%clk 0:01:37]} 36. Rxc5 {[%clk 0:00:16]}  Rxc5 {[%clk 0:01:37]} 37. Rxa6 {[%clk 0:00:17]}  Kf7 {[%clk 0:01:31]} 38. Ra7+ {[%clk 0:00:14]}  Kf8 {[%clk 0:01:29]} 39. Nd2 {[%clk 0:00:11]}  Nc6 {[%clk 0:01:27]} 40. Rc7 {[%clk 0:00:09]}  Rc2 {[%clk 0:01:26]} 41. Ne4 {[%clk 0:00:08]}  Re2 {[%clk 0:01:18]} 42. Nd6 {[%clk 0:00:07]}  Nd4 {[%clk 0:01:11]} 43. a4 {[%clk 0:00:05]}  Re1+ {[%clk 0:01:06]} 44. Kh2 {[%clk 0:00:05]}  Ra1 {[%clk 0:01:07]} 45. Rf7+ {[%clk 0:00:04]}  Kg8 {[%clk 0:01:07]} 46. Ra7 {[%clk 0:00:04]}  h5 {[%clk 0:01:08]} 47. Ne8 {[%clk 0:00:04]}  Nc6 {[%clk 0:01:03]} 48. Rxg7+ {[%clk 0:00:03]}  Kf8 {[%clk 0:01:03]} 49. Rc7 {[%clk 0:00:04]}  Kxe8 {[%clk 0:01:01]} 50. Rxc6 {[%clk 0:00:04]}  Kf7 {[%clk 0:01:02]} 51. Ra6 {[%clk 0:00:04]}  h4 {[%clk 0:01:01]} 52. g4 {[%clk 0:00:03]}  Kg6 {[%clk 0:00:57]} 53. Kg2 {[%clk 0:00:03]}  e4 {[%clk 0:00:56]} 54. Ra8 {[%clk 0:00:02]}  Kg5 {[%clk 0:00:51]} 55. a5 {[%clk 0:00:02]}  f5 {[%clk 0:00:51]} 56. gxf5 {[%clk 0:00:02]}  Kxf5 {[%clk 0:00:52]} 57. a6 {[%clk 0:00:02]}  Kg6 {[%clk 0:00:51]} 58. a7 {[%clk 0:00:02]}  Kg7 {[%clk 0:00:51]} 59. f4 {[%clk 0:00:02]}  exf3+ {[%clk 0:00:48]} 60. Kxf3 {[%clk 0:00:03]}  Ra4 {[%clk 0:00:49]} 61. Ke3 {[%clk 0:00:03]}  Kh7 {[%clk 0:00:49]} 62. Kd3 {[%clk 0:00:03]}  Kg7 {[%clk 0:00:50]} 63. Kc3 {[%clk 0:00:04]}  Ra1 {[%clk 0:00:50]} 64. Kb3 {[%clk 0:00:04]}  Kh7 {[%clk 0:00:49]} 65. Kc4 {[%clk 0:00:05]}  Kg7 {[%clk 0:00:49]} 66. Kd5 {[%clk 0:00:05]}  Kh7 {[%clk 0:00:49]} 67. Kc6 {[%clk 0:00:06]}  Rc1+ {[%clk 0:00:49]} 68. Kd5 {[%clk 0:00:07]}  Rd1+ {[%clk 0:00:49]} 69. Ke6 {[%clk 0:00:07]}  Ra1 {[%clk 0:00:50]} 70. Kf5 {[%clk 0:00:07]}  Rf1+ {[%clk 0:00:50]} 71. Kg5 {[%clk 0:00:07]}  Ra1 {[%clk 0:00:51]} 72. Kxh4 {[%clk 0:00:08]}  Ra4+ {[%clk 0:00:51]} 73. Kg5 {[%clk 0:00:08]}  Ra1 {[%clk 0:00:52]} 74. Kf5 {[%clk 0:00:09]}  Ra5+ {[%clk 0:00:51]} 75. Kf6 {[%clk 0:00:09]}  Ra1 {[%clk 0:00:52]} 76. Ke5 {[%clk 0:00:10]}  Re1+ {[%clk 0:00:51]} 77. Kd4 {[%clk 0:00:10]}  Rd1+ {[%clk 0:00:52]} 78. Kc3 {[%clk 0:00:10]}  Ra1 {[%clk 0:00:53]} 79. Kb2 {[%clk 0:00:11]}  Ra6 {[%clk 0:00:53]} 80. Kb3 {[%clk 0:00:11]}  Ra1 {[%clk 0:00:53]} 81. h4 {[%clk 0:00:12]}  Ra6 {[%clk 0:00:52]} 82. Kc2 {[%clk 0:00:12]}  Ra1 {[%clk 0:00:52]} 83. Kb2 {[%clk 0:00:12]}  Ra6 {[%clk 0:00:53]} 84. h5 {[%clk 0:00:13]}  Ra5 {[%clk 0:00:53]} 85. Kb3 {[%clk 0:00:13]}  Ra1 {[%clk 0:00:53]} 86. Kc4 {[%clk 0:00:14]}  Rc1+ {[%clk 0:00:53]} 87. Kd5 {[%clk 0:00:14]}  Ra1 {[%clk 0:00:54]} 88. Kd6 {[%clk 0:00:14]}  Ra2 {[%clk 0:00:53]} 89. Kc5 {[%clk 0:00:15]}  Ra1 {[%clk 0:00:53]} 90. Kb5 {[%clk 0:00:15]}  Rb1+ {[%clk 0:00:53]} 91. Kc6 {[%clk 0:00:16]}  Rc1+ {[%clk 0:00:54]} 92. Kb7 {[%clk 0:00:17]}  Rb1+ {[%clk 0:00:54]} 93. Kc7 {[%clk 0:00:17]}  Rc1+ {[%clk 0:00:54]} 94. Kd6 {[%clk 0:00:18]}  Rd1+ {[%clk 0:00:55]} 95. Ke5 {[%clk 0:00:18]}  Ra1 {[%clk 0:00:55]} 96. h6 {[%clk 0:00:19]}  Ra5+ {[%clk 0:00:55]} 97. Kd4 {[%clk 0:00:19]}  Ra1 {[%clk 0:00:56]} 98. Kc5 {[%clk 0:00:20]}  Rc1+ {[%clk 0:00:56]} 99. Kb4 {[%clk 0:00:20]}  Rb1+ {[%clk 0:00:56]} 100. Ka5 {[%clk 0:00:20]}  Ra1+ {[%clk 0:00:57]} 101. Kb6 {[%clk 0:00:21]}  Rb1+ {[%clk 0:00:57]} 102. Ka6 {[%clk 0:00:22]}  Ra1+ {[%clk 0:00:58]} 103. Kb7 {[%clk 0:00:22]}  Rb1+ {[%clk 0:00:58]} 104. Kc8 {[%clk 0:00:23]}  Rc1+ {[%clk 0:00:58]} 105. Kd8 {[%clk 0:00:23]}  Rd1+ {[%clk 0:00:58]} 106. Ke8 {[%clk 0:00:24]}  Ra1 {[%clk 0:00:58]} 107. Ke7 {[%clk 0:00:21]}  Ra2 {[%clk 0:00:58]} 108. Kd6 {[%clk 0:00:21]}  Ra1 {[%clk 0:00:58]} 109. Kc5 {[%clk 0:00:22]}  Rc1+ {[%clk 0:00:59]} 110. Kb6 {[%clk 0:00:22]}  Rb1+ {[%clk 0:00:59]} 111. Ka5 {[%clk 0:00:23]}  Ra1+ {[%clk 0:00:59]} 112. Kb4 {[%clk 0:00:23]}  Rb1+ {[%clk 0:01:00]} 113. Ka3 {[%clk 0:00:23]}  Ra1+ {[%clk 0:01:00]} 114. Kb2 {[%clk 0:00:23]}  Ra6 {[%clk 0:01:01]} 115. Rb8 {[%clk 0:00:24]}  Rxa7 {[%clk 0:01:00]} 116. Rb3 {[%clk 0:00:24]}  Ra6 {[%clk 0:01:00]} 117. Ra3 {[%clk 0:00:25]}  Rxa3 {[%clk 0:01:00]} 118. Kxa3 {[%clk 0:00:25]}  Kxh6 {[%clk 0:01:01]} 1/2-1/2


[Site "https://www.chess.com"]

[Event "Titled Tuesday Blitz September 13 Late 2022"]
[White "Bluebaum, Matthias"]
[Black "Perez Ponsa, Federico"]
[WhiteFideId "24651516"]
[BlackFideId "117927"]
[WhiteElo "2633"]
[BlackElo "2604"]
[Result "1-0"]
[Round "07"]
[TimeControl "180+1"]
[Date "2022.09.13"]
[WhiteClock "0:01:24"]
[BlackClock "0:01:07"]

1. d4 {[%clk 0:03:00]}  Nf6 {[%clk 0:02:54]} 2. c4 {[%clk 0:03:00]}  e6 {[%clk 0:02:55]} 3. Nc3 {[%clk 0:03:01]}  d5 {[%clk 0:02:55]} 4. cxd5 {[%clk 0:03:01]}  exd5 {[%clk 0:02:56]} 5. Bg5 {[%clk 0:03:01]}  c6 {[%clk 0:02:57]} 6. e3 {[%clk 0:03:02]}  h6 {[%clk 0:02:58]} 7. Bh4 {[%clk 0:03:02]}  Be7 {[%clk 0:02:58]} 8. Bd3 {[%clk 0:03:02]}  O-O {[%clk 0:02:59]} 9. Nge2 {[%clk 0:03:03]}  Nbd7 {[%clk 0:02:59]} 10. O-O {[%clk 0:03:03]}  Re8 {[%clk 0:03:00]} 11. f3 {[%clk 0:03:03]}  b5 {[%clk 0:03:00]} 12. Rc1 {[%clk 0:03:04]}  Bb7 {[%clk 0:02:58]} 13. Bf2 {[%clk 0:02:59]}  a6 {[%clk 0:02:55]} 14. h3 {[%clk 0:02:59]}  c5 {[%clk 0:02:55]} 15. dxc5 {[%clk 0:03:00]}  Nxc5 {[%clk 0:02:56]} 16. Nd4 {[%clk 0:02:58]}  Bf8 {[%clk 0:02:55]} 17. Nce2 {[%clk 0:02:58]}  Rc8 {[%clk 0:02:55]} 18. Bb1 {[%clk 0:02:57]}  Ne6 {[%clk 0:02:54]} 19. Qd2 {[%clk 0:02:57]}  Bc5 {[%clk 0:02:54]} 20. b3 {[%clk 0:02:56]}  b4 {[%clk 0:02:52]} 21. Rc2 {[%clk 0:02:53]}  Bd6 {[%clk 0:02:38]} 22. Rxc8 {[%clk 0:02:51]}  Qxc8 {[%clk 0:02:36]} 23. Rc1 {[%clk 0:02:52]}  Qd7 {[%clk 0:02:36]} 24. Bh4 {[%clk 0:02:43]}  Be7 {[%clk 0:02:33]} 25. Nf5 {[%clk 0:02:39]}  Bd8 {[%clk 0:02:30]} 26. Qxb4 {[%clk 0:02:36]}  Ng5 {[%clk 0:02:07]} 27. Qd6 {[%clk 0:02:14]}  a5 {[%clk 0:01:18]} 28. Qxd7 {[%clk 0:02:06]}  Nxd7 {[%clk 0:01:19]} 29. Nd6 {[%clk 0:01:33]}  Rxe3 {[%clk 0:01:16]} 30. Nxb7 {[%clk 0:01:33]}  Bb6 {[%clk 0:01:17]} 31. Kf1 {[%clk 0:01:28]}  Nf6 {[%clk 0:01:07]} 32. Bf2 {[%clk 0:01:24]} 1-0


[Site "https://www.chess.com"]

[Event "Titled Tuesday Blitz September 13 Late 2022"]
[White "Bortnyk, Mykola"]
[Black "Hansen, Eric"]
[WhiteFideId "14120836"]
[BlackFideId "2606771"]
[WhiteElo "2582"]
[BlackElo "2568"]
[Result "1-0"]
[Round "07"]
[TimeControl "180+1"]
[Date "2022.09.13"]
[WhiteClock "0:00:16"]
[BlackClock "0:00:01"]

1. e4 {[%clk 0:03:00]}  c5 {[%clk 0:02:57]} 2. c3 {[%clk 0:03:01]}  Nf6 {[%clk 0:02:52]} 3. e5 {[%clk 0:03:00]}  Nd5 {[%clk 0:02:53]} 4. g3 {[%clk 0:03:00]}  Nc6 {[%clk 0:02:52]} 5. Bg2 {[%clk 0:03:00]}  e6 {[%clk 0:02:52]} 6. Nf3 {[%clk 0:02:47]}  Qc7 {[%clk 0:02:36]} 7. Qe2 {[%clk 0:02:45]}  d6 {[%clk 0:02:34]} 8. exd6 {[%clk 0:02:44]}  Bxd6 {[%clk 0:02:34]} 9. Na3 {[%clk 0:02:45]}  a6 {[%clk 0:02:31]} 10. Nc4 {[%clk 0:02:45]}  O-O {[%clk 0:02:25]} 11. O-O {[%clk 0:02:40]}  b5 {[%clk 0:02:21]} 12. Nxd6 {[%clk 0:02:37]}  Qxd6 {[%clk 0:02:22]} 13. a4 {[%clk 0:02:35]}  Bd7 {[%clk 0:02:12]} 14. d3 {[%clk 0:02:28]}  Na5 {[%clk 0:02:05]} 15. axb5 {[%clk 0:02:22]}  Nb3 {[%clk 0:02:03]} 16. Rxa6 {[%clk 0:02:20]}  Rxa6 {[%clk 0:01:59]} 17. bxa6 {[%clk 0:02:21]}  Qxa6 {[%clk 0:01:42]} 18. Ne5 {[%clk 0:02:18]}  Bc8 {[%clk 0:01:39]} 19. Be3 {[%clk 0:02:06]}  Qd6 {[%clk 0:01:06]} 20. Nc4 {[%clk 0:02:04]}  Qc7 {[%clk 0:01:07]} 21. Qc2 {[%clk 0:01:59]}  Na5 {[%clk 0:01:06]} 22. Nxa5 {[%clk 0:01:52]}  Qxa5 {[%clk 0:01:06]} 23. Bd2 {[%clk 0:01:43]}  Qb6 {[%clk 0:01:05]} 24. Ra1 {[%clk 0:01:39]}  Bb7 {[%clk 0:01:03]} 25. h4 {[%clk 0:01:34]}  h6 {[%clk 0:01:02]} 26. Ra3 {[%clk 0:01:31]}  Bc6 {[%clk 0:00:53]} 27. Qb3 {[%clk 0:01:20]}  Qd8 {[%clk 0:00:43]} 28. Qc4 {[%clk 0:01:19]}  Nb6 {[%clk 0:00:28]} 29. Qxc5 {[%clk 0:01:12]}  Bxg2 {[%clk 0:00:28]} 30. Kxg2 {[%clk 0:01:12]}  Qxd3 {[%clk 0:00:29]} 31. Qxb6 {[%clk 0:00:52]}  Qd5+ {[%clk 0:00:28]} 32. Kh2 {[%clk 0:00:51]}  Qxd2 {[%clk 0:00:28]} 33. Ra1 {[%clk 0:00:48]}  Rc8 {[%clk 0:00:26]} 34. Ra7 {[%clk 0:00:47]}  Rf8 {[%clk 0:00:16]} 35. c4 {[%clk 0:00:46]}  g5 {[%clk 0:00:15]} 36. hxg5 {[%clk 0:00:40]}  hxg5 {[%clk 0:00:16]} 37. Qe3 {[%clk 0:00:40]}  Qxb2 {[%clk 0:00:15]} 38. Qxg5+ {[%clk 0:00:40]}  Qg7 {[%clk 0:00:16]} 39. Qh4 {[%clk 0:00:34]}  Qb2 {[%clk 0:00:10]} 40. Qg4+ {[%clk 0:00:29]}  Qg7 {[%clk 0:00:07]} 41. Qf4 {[%clk 0:00:25]}  Qg6 {[%clk 0:00:06]} 42. Ra5 {[%clk 0:00:25]}  f6 {[%clk 0:00:05]} 43. Ra7 {[%clk 0:00:23]}  Rc8 {[%clk 0:00:03]} 44. Re7 {[%clk 0:00:20]}  e5 {[%clk 0:00:01]} 45. Qf3 {[%clk 0:00:16]} 1-0


[Site "https://www.chess.com"]

[Event "Titled Tuesday Blitz September 13 Late 2022"]
[White "Ceres, Dragos"]
[Black "Souleidis, Georgios"]
[WhiteFideId "13905864"]
[BlackFideId "4206827"]
[WhiteElo "2150"]
[BlackElo "2401"]
[Result "1-0"]
[Round "07"]
[TimeControl "180+1"]
[Date "2022.09.13"]
[WhiteClock "0:00:39"]
[BlackClock "0:00:04"]

1. e4 {[%clk 0:03:00]}  e5 {[%clk 0:02:56]} 2. Nf3 {[%clk 0:03:00]}  d6 {[%clk 0:02:56]} 3. Bc4 {[%clk 0:02:59]}  Nf6 {[%clk 0:02:56]} 4. d3 {[%clk 0:02:59]}  Be7 {[%clk 0:02:56]} 5. O-O {[%clk 0:03:00]}  O-O {[%clk 0:02:56]} 6. a4 {[%clk 0:03:00]}  c5 {[%clk 0:02:56]} 7. Nc3 {[%clk 0:02:59]}  Nc6 {[%clk 0:02:57]} 8. h3 {[%clk 0:02:58]}  Be6 {[%clk 0:02:56]} 9. Nd5 {[%clk 0:02:56]}  Bxd5 {[%clk 0:02:54]} 10. Bxd5 {[%clk 0:02:46]}  Nxd5 {[%clk 0:02:54]} 11. exd5 {[%clk 0:02:46]}  Nb4 {[%clk 0:02:54]} 12. c4 {[%clk 0:02:45]}  f5 {[%clk 0:02:54]} 13. Qe2 {[%clk 0:02:39]}  Bf6 {[%clk 0:02:53]} 14. Ne1 {[%clk 0:02:27]}  Re8 {[%clk 0:02:46]} 15. Bd2 {[%clk 0:02:25]}  a5 {[%clk 0:02:44]} 16. Bc3 {[%clk 0:02:19]}  e4 {[%clk 0:02:36]} 17. Qd2 {[%clk 0:02:07]}  Bg5 {[%clk 0:02:24]} 18. Qd1 {[%clk 0:02:04]}  e3 {[%clk 0:02:18]} 19. fxe3 {[%clk 0:02:00]}  Bxe3+ {[%clk 0:02:17]} 20. Kh1 {[%clk 0:01:59]}  Qg5 {[%clk 0:02:02]} 21. Nf3 {[%clk 0:01:46]}  Qg3 {[%clk 0:01:58]} 22. Be1 {[%clk 0:01:46]}  Qg6 {[%clk 0:01:55]} 23. Nh4 {[%clk 0:01:45]}  Qf6 {[%clk 0:01:50]} 24. Nxf5 {[%clk 0:01:36]}  Qxb2 {[%clk 0:01:46]} 25. Rb1 {[%clk 0:01:07]}  Qa2 {[%clk 0:00:42]} 26. Bc3 {[%clk 0:01:03]}  Bd4 {[%clk 0:00:34]} 27. Bxd4 {[%clk 0:00:56]}  cxd4 {[%clk 0:00:33]} 28. Qg4 {[%clk 0:00:56]}  g6 {[%clk 0:00:31]} 29. Nh6+ {[%clk 0:00:56]}  Kg7 {[%clk 0:00:31]} 30. Rf7+ {[%clk 0:00:56]}  Kh8 {[%clk 0:00:29]} 31. Qxd4+ {[%clk 0:00:55]}  Re5 {[%clk 0:00:29]} 32. Rbf1 {[%clk 0:00:48]}  Qd2 {[%clk 0:00:07]} 33. Ng4 {[%clk 0:00:41]}  Qxd3 {[%clk 0:00:05]} 34. Qa1 {[%clk 0:00:40]}  Nc2 {[%clk 0:00:04]} 35. Nxe5 {[%clk 0:00:39]} 1-0


[Site "https://www.chess.com"]

[Event "Titled Tuesday Blitz September 13 Late 2022"]
[White "Domalchuk-Jonasson, Aleksandr"]
[Black "Shirov, Alexei"]
[WhiteFideId "14142805"]
[BlackFideId "2209390"]
[WhiteElo "1991"]
[BlackElo "2678"]
[Result "1-0"]
[Round "07"]
[TimeControl "180+1"]
[Date "2022.09.13"]
[WhiteClock "0:00:21"]
[BlackClock "0:00:42"]

1. d4 {[%clk 0:03:00]}  d5 {[%clk 0:02:59]} 2. c4 {[%clk 0:03:00]}  c6 {[%clk 0:02:59]} 3. cxd5 {[%clk 0:03:01]}  cxd5 {[%clk 0:03:00]} 4. Bf4 {[%clk 0:03:02]}  Nc6 {[%clk 0:02:58]} 5. e3 {[%clk 0:03:02]}  Nf6 {[%clk 0:02:57]} 6. Nc3 {[%clk 0:03:02]}  Bg4 {[%clk 0:02:57]} 7. Qb3 {[%clk 0:03:01]}  Na5 {[%clk 0:02:56]} 8. Qa4+ {[%clk 0:03:01]}  Bd7 {[%clk 0:02:55]} 9. Qc2 {[%clk 0:03:02]}  Rc8 {[%clk 0:02:54]} 10. Nf3 {[%clk 0:03:00]}  b5 {[%clk 0:02:53]} 11. a3 {[%clk 0:03:00]}  Ne4 {[%clk 0:02:50]} 12. Bd3 {[%clk 0:02:57]}  e6 {[%clk 0:02:42]} 13. Bxe4 {[%clk 0:02:47]}  dxe4 {[%clk 0:02:42]} 14. Qxe4 {[%clk 0:02:48]}  Bc6 {[%clk 0:02:41]} 15. d5 {[%clk 0:02:38]}  Bxd5 {[%clk 0:02:36]} 16. Nxd5 {[%clk 0:02:38]}  Qxd5 {[%clk 0:02:36]} 17. Qxd5 {[%clk 0:02:39]}  exd5 {[%clk 0:02:36]} 18. Rd1 {[%clk 0:02:26]}  Rc2 {[%clk 0:02:33]} 19. Rxd5 {[%clk 0:02:09]}  Rxb2 {[%clk 0:02:32]} 20. O-O {[%clk 0:01:52]}  Nc4 {[%clk 0:02:25]} 21. Rfd1 {[%clk 0:01:38]}  Be7 {[%clk 0:02:18]} 22. Rd7 {[%clk 0:01:38]}  Bf6 {[%clk 0:02:02]} 23. Rxa7 {[%clk 0:01:38]}  O-O {[%clk 0:02:02]} 24. g4 {[%clk 0:01:35]}  g6 {[%clk 0:01:58]} 25. Rdd7 {[%clk 0:01:24]}  Ra2 {[%clk 0:01:39]} 26. Bh6 {[%clk 0:01:20]}  Bg7 {[%clk 0:01:38]} 27. Bxg7 {[%clk 0:01:20]}  Kxg7 {[%clk 0:01:36]} 28. Ng5 {[%clk 0:01:21]}  Rxa3 {[%clk 0:01:08]} 29. Rxa3 {[%clk 0:01:13]}  Nxa3 {[%clk 0:01:07]} 30. Ne6+ {[%clk 0:01:13]}  Kg8 {[%clk 0:01:07]} 31. Nxf8 {[%clk 0:01:14]}  Kxf8 {[%clk 0:01:08]} 32. Rb7 {[%clk 0:01:12]}  g5 {[%clk 0:01:04]} 33. Kg2 {[%clk 0:01:11]}  Kg7 {[%clk 0:01:03]} 34. Kg3 {[%clk 0:01:11]}  Kg6 {[%clk 0:01:03]} 35. Rb6+ {[%clk 0:01:10]}  f6 {[%clk 0:01:02]} 36. Rb7 {[%clk 0:01:10]}  h5 {[%clk 0:01:01]} 37. h3 {[%clk 0:00:50]}  hxg4 {[%clk 0:01:01]} 38. hxg4 {[%clk 0:00:51]}  Kh6 {[%clk 0:01:02]} 39. Rb6 {[%clk 0:00:50]}  Kg7 {[%clk 0:01:00]} 40. Kf3 {[%clk 0:00:50]}  Kg6 {[%clk 0:00:57]} 41. Ke2 {[%clk 0:00:30]}  Kf7 {[%clk 0:00:56]} 42. Kd3 {[%clk 0:00:29]}  Ke7 {[%clk 0:00:55]} 43. Kc3 {[%clk 0:00:26]}  Nc4 {[%clk 0:00:53]} 44. Rxb5 {[%clk 0:00:26]}  Nd6 {[%clk 0:00:52]} 45. Rb4 {[%clk 0:00:24]}  Ke6 {[%clk 0:00:52]} 46. Kd3 {[%clk 0:00:24]}  Nf7 {[%clk 0:00:51]} 47. f4 {[%clk 0:00:24]}  gxf4 {[%clk 0:00:51]} 48. exf4 {[%clk 0:00:25]}  Nh6 {[%clk 0:00:49]} 49. Rb6+ {[%clk 0:00:24]}  Kf7 {[%clk 0:00:47]} 50. g5 {[%clk 0:00:24]}  Ng4 {[%clk 0:00:46]} 51. Ke4 {[%clk 0:00:20]}  fxg5 {[%clk 0:00:45]} 52. fxg5 {[%clk 0:00:20]}  Kg7 {[%clk 0:00:45]} 53. Kf4 {[%clk 0:00:19]}  Nf2 {[%clk 0:00:45]} 54. Rb7+ {[%clk 0:00:19]}  Kg6 {[%clk 0:00:44]} 55. Rb6+ {[%clk 0:00:20]}  Kg7 {[%clk 0:00:44]} 56. Kf5 {[%clk 0:00:21]}  Nd1 {[%clk 0:00:42]} 57. Rb7+ {[%clk 0:00:21]}  Kg8 {[%clk 0:00:42]} 58. Kg6 {[%clk 0:00:21]} 1-0


[Site "https://www.chess.com"]

[Event "Titled Tuesday Blitz September 13 Late 2022"]
[White "Gheorghiu, Calin"]
[Black "Korchmar, Vasiliy"]
[WhiteFideId "1200305"]
[BlackFideId "24131750"]
[WhiteElo "2168"]
[BlackElo "2370"]
[Result "0-1"]
[Round "07"]
[TimeControl "180+1"]
[Date "2022.09.13"]
[WhiteClock "0:00:02"]
[BlackClock "0:00:30"]

1. d4 {[%clk 0:01:32]}  d5 {[%clk 0:02:59]} 2. Nf3 {[%clk 0:01:31]}  Nf6 {[%clk 0:02:58]} 3. Bf4 {[%clk 0:01:30]}  c5 {[%clk 0:02:59]} 4. e3 {[%clk 0:01:30]}  Nc6 {[%clk 0:02:59]} 5. Nbd2 {[%clk 0:01:30]}  Bf5 {[%clk 0:02:59]} 6. c3 {[%clk 0:01:22]}  e6 {[%clk 0:02:58]} 7. Bb5 {[%clk 0:01:19]}  Bd6 {[%clk 0:02:56]} 8. Ne5 {[%clk 0:01:18]}  Qc7 {[%clk 0:02:38]} 9. Qa4 {[%clk 0:01:13]}  O-O {[%clk 0:02:25]} 10. Bxc6 {[%clk 0:01:08]}  bxc6 {[%clk 0:02:25]} 11. Qxc6 {[%clk 0:01:06]}  Qxc6 {[%clk 0:01:51]} 12. Nxc6 {[%clk 0:01:06]}  Bxf4 {[%clk 0:01:52]} 13. Ne7+ {[%clk 0:00:48]}  Kh8 {[%clk 0:01:52]} 14. Nxf5 {[%clk 0:00:48]}  exf5 {[%clk 0:01:49]} 15. exf4 {[%clk 0:00:47]}  Rfe8+ {[%clk 0:01:47]} 16. Kf1 {[%clk 0:00:24]}  cxd4 {[%clk 0:01:48]} 17. cxd4 {[%clk 0:00:24]}  Rac8 {[%clk 0:01:49]} 18. Nf3 {[%clk 0:00:14]}  Rc2 {[%clk 0:01:49]} 19. Ne5 {[%clk 0:00:14]}  Ng4 {[%clk 0:01:34]} 20. Nxg4 {[%clk 0:00:09]}  fxg4 {[%clk 0:01:35]} 21. h3 {[%clk 0:00:07]}  g3 {[%clk 0:01:16]} 22. fxg3 {[%clk 0:00:05]}  Rxb2 {[%clk 0:01:16]} 23. h4 {[%clk 0:00:04]}  h5 {[%clk 0:01:10]} 24. Rh3 {[%clk 0:00:04]}  Ree2 {[%clk 0:01:08]} 25. Kg1 {[%clk 0:00:03]}  Rxg2+ {[%clk 0:01:08]} 26. Kh1 {[%clk 0:00:03]}  Rxa2 {[%clk 0:01:05]} 27. Rb1 {[%clk 0:00:02]}  Rgb2 {[%clk 0:01:04]} 28. Rc1 {[%clk 0:00:01]}  Rc2 {[%clk 0:01:04]} 29. Rd1 {[%clk 0:00:01]}  f5 {[%clk 0:01:02]} 30. Re1 {[%clk 0:00:01]}  Kh7 {[%clk 0:01:01]} 31. g4 {[%clk 0:00:02]}  hxg4 {[%clk 0:01:00]} 32. Rhe3 {[%clk 0:00:02]}  Rh2+ {[%clk 0:00:30]} 33. Kg1 {[%clk 0:00:02]}  Rxh4 {[%clk 0:00:31]} 34. Re5 {[%clk 0:00:03]}  g3 {[%clk 0:00:30]} 35. Rxf5 {[%clk 0:00:03]}  g2 {[%clk 0:00:30]} 36. Rg5 {[%clk 0:00:02]}  Rh1# {[%clk 0:00:30]} 0-1


[Site "https://www.chess.com"]

[Event "Titled Tuesday Blitz September 13 Late 2022"]
[White "Gomez Ledo, Roberto Carlos"]
[Black "Zenin, Dmitry"]
[WhiteFideId "3507076"]
[BlackFideId "4127897"]
[WhiteElo "2379"]
[BlackElo "2215"]
[Result "1-0"]
[Round "07"]
[TimeControl "180+1"]
[Date "2022.09.13"]
[WhiteClock "0:01:31"]
[BlackClock "0:01:19"]

1. d4 {[%clk 0:03:00]}  Nf6 {[%clk 0:02:59]} 2. Bf4 {[%clk 0:03:00]}  g6 {[%clk 0:02:57]} 3. Nc3 {[%clk 0:02:59]}  d6 {[%clk 0:02:52]} 4. e4 {[%clk 0:02:58]}  Bg7 {[%clk 0:02:46]} 5. Qd2 {[%clk 0:02:57]}  Nc6 {[%clk 0:02:45]} 6. O-O-O {[%clk 0:02:53]}  O-O {[%clk 0:02:37]} 7. Bh6 {[%clk 0:02:52]}  e5 {[%clk 0:02:32]} 8. Bxg7 {[%clk 0:02:52]}  Kxg7 {[%clk 0:02:32]} 9. Nge2 {[%clk 0:02:51]}  exd4 {[%clk 0:02:22]} 10. Nxd4 {[%clk 0:02:51]}  Bd7 {[%clk 0:02:22]} 11. f3 {[%clk 0:02:50]}  Re8 {[%clk 0:02:21]} 12. g4 {[%clk 0:02:50]}  h5 {[%clk 0:02:14]} 13. g5 {[%clk 0:02:48]}  Nh7 {[%clk 0:02:10]} 14. h4 {[%clk 0:02:47]}  Nf8 {[%clk 0:02:00]} 15. Nd5 {[%clk 0:02:41]}  Nh7 {[%clk 0:01:56]} 16. Bg2 {[%clk 0:02:34]}  Ne5 {[%clk 0:01:53]} 17. f4 {[%clk 0:02:32]}  Ng4 {[%clk 0:01:52]} 18. f5 {[%clk 0:02:27]}  Ne5 {[%clk 0:01:42]} 19. Rhf1 {[%clk 0:02:23]}  c6 {[%clk 0:01:33]} 20. Nf4 {[%clk 0:02:05]}  Qb6 {[%clk 0:01:22]} 21. Nb3 {[%clk 0:01:59]}  Rad8 {[%clk 0:01:20]} 22. fxg6 {[%clk 0:01:52]}  fxg6 {[%clk 0:01:20]} 23. Qxd6 {[%clk 0:01:32]}  Bg4 {[%clk 0:01:19]} 24. Ne6+ {[%clk 0:01:31]} 1-0


[Site "https://www.chess.com"]